Cogmind - Beta 13 @@@ ROGUE MODE // 2024.04.02 @ 22:31:46 Player: zeramoth Result: Self-destructed Performance ------------- Evolutions (0) 0 Regions Visited (4) 800 Robots Destroyed (11) 55 Value Destroyed (243) 243 Prototype IDs (2) 40 Alien Tech Used (0) 0 Bonus (42) 42 TOTAL SCORE: 1180 Bonus ------- Follower Combat Kills 42 Cogmind --------- Core Integrity 126/250 Matter 291/300 Energy 125/125 System Corruption 0% Temperature Cool (70) Movement Treading (160) Location -9/Mines Parts ------- > --- POWER (1) -------- Light Ion Engine > --- PROPULSION (2) --- Light Treads Light Treads > --- UTILITY (2) ------ Heat Sink Large Storage Unit > --- WEAPON (2) ------- Makeshift Laser > --- INVENTORY (15) --- Ion Engine Ion Engine Aluminum Leg Aluminum Leg Wheel Wheel Small Storage Unit Medium Storage Unit Weight Redist. System Weight Redist. System Sensor Array Terrain Scanner Makeshift Terrain Scan Processor Makeshift Laser Makeshift Laser Peak State ------------ > --- POWER ------------ Light Ion Engine > --- PROPULSION ------- Light Treads Light Treads > --- UTILITY ---------- Heat Sink Large Storage Unit > --- WEAPON ----------- Makeshift Laser Light Assault Rifle > --- INVENTORY -------- Ion Engine Ion Engine Aluminum Leg Aluminum Leg Wheel Wheel Small Storage Unit Medium Storage Unit Weight Redist. System Weight Redist. System Sensor Array Terrain Scanner Makeshift Laser Light Assault Rifle Light Assault Rifle [Rating: 12] Favorites ----------- Power Light Ion Engine Engine Light Ion Engine Propulsion Light Treads Treads Light Treads Leg Aluminum Leg Utility Heat Sink Device Heat Sink Storage Large Storage Unit Weapon Light Assault Rifle Energy Gun Makeshift Laser Ballistic Gun Light Assault Rifle Build | -11 -10 -10 -10 -9 ------- Run | Yrd Mat Min Exi Min Slots Evolved . | . . . . . Power . | . . . . . Propulsion . | . . . . . Utility . | . . . . . Weapon . | . . . . . Parts Attached 12 | . 8 3 1 . Power 1 | . . 1 . . Engine 1 | . . 1 . . Core . | . . . . . Reactor . | . . . . . Propulsion 5 | . 5 . . . Treads 3 | . 3 . . . Leg 2 | . 2 . . . Wheel . | . . . . . Hover . | . . . . . Flight . | . . . . . Utility 3 | . 2 1 . . Device 2 | . 1 1 . . Storage 1 | . 1 . . . Processor . | . . . . . Hackware . | . . . . . Protection . | . . . . . Artifact . | . . . . . Weapon 3 | . 1 1 1 . Energy Gun 1 | . . . 1 . Energy Cannon . | . . . . . Ballistic Gun 2 | . 1 1 . . Ballistic Cannon . | . . . . . Launcher . | . . . . . Special Weapon . | . . . . . Impact Weapon . | . . . . . Slashing Weapon . | . . . . . Piercing Weapon . | . . . . . Special Melee Weapon . | . . . . . Unidentified Prototypes . | . . . . . Parts Lost 1 | . . . . 1 Power . | . . . . . Propulsion . | . . . . . Utility . | . . . . . Weapon 1 | . . . . 1 Highest Loss Streak 1 | . . . . 1 To Critical Strikes . | . . . . . Average Slot Usage (%) 99 | . 97 100 100 100 Engine 14 | . 14 14 14 14 Treads 26 | . 21 28 28 28 Leg 1 | . 6 . . . Device 13 | . 12 14 14 14 Storage 14 | . 14 14 14 14 Energy Gun 8 | . 13 . 9 14 Ballistic Gun 19 | . 14 28 18 14 Naked Turns . | . . . . . Heaviest Build 29 | 13 29 28 27 27 Greatest Support 40 | 20 40 40 40 40 Greatest Overweight (x) 1 | . 1 . . . Average Overweight (x) . | . . . . . Largest Inventory Capacity 15 | 8 15 15 15 15 Average Capacity 14 | 8 13 15 15 15 Most Carried 15 | 6 11 15 15 15 Average Carried 12 | 6 8 12 14 15 Final Capacity 15 | 8 15 15 15 15 Final Carried 15 | 6 11 14 15 15 Class Distribution -------------------- 74% | Mutant 25% | Scavenger-Mutant Dominant Class ---------------- Mutant | -10/Materials Scavenger-Mutant | -10/Mines Mutant | -10/Exiles Mutant | -9/Mines Resources | -11 -10 -10 -10 -9 ----------- Run | Yrd Mat Min Exi Min Matter Collected 343 | 200 87 56 . . Remotely . | . . . . . Salvage Created 334 | . 322 . . 12 Parts 21 | . 21 . . . Haulers Intercepted . | . . . . . Recyclers Shooed . | . . . . . Parts Field Recycled . | . . . . . Retrieved Matter . | . . . . . Parts Self-Destructed . | . . . . . Prevented . | . . . . . Kills | -11 -10 -10 -10 -9 ------- Run | Yrd Mat Min Exi Min Combat Hostiles Destroyed 12 | . 11 . . 1 Guns 12 | . 11 . . 1 Classes Destroyed 3 | . 2 . . 1 Swarmer 6 | . 6 . . . Grunt 5 | . 5 . . . Assembled 1 | . . . . 1 Best Kill Streak 4 | . 4 . . 1 Combat Bots Only 4 | . 4 . . 1 Max Kills in Single Turn 1 | . 1 . . 1 Gunslinging . | . . . . . Exploded . | . . . . . Melee . | . . . . . Uniques/NPCs Destroyed . | . . . . . Combat | -11 -10 -10 -10 -9 -------- Run | Yrd Mat Min Exi Min Hostile Shots Fired 75 | . 49 8 . 18 Missed 19 | . 15 . . 4 Damage Taken 650 | . 344 56 . 250 Core 124 | . 29 . . 95 Absorbed by Shields . | . . . . . Core Remaining (%) 100 | 100 . . . . Volleys Fired 34 | . 27 3 . 4 Largest 2 | . 2 2 . 2 Hottest 70 | . 60 40 . 70 Shots Fired 68 | . 54 6 . 8 Gun 68 | . 54 6 . 8 Cannon . | . . . . . Launcher . | . . . . . Special . | . . . . . Kinetic 37 | . 27 6 . 4 Thermal 4 | . . . . 4 Explosive . | . . . . . Electromagnetic 27 | . 27 . . . Robot Hit Streak 13 | . 13 5 . 3 Robot Miss Streak 6 | . 6 1 . 2 Penetration Max . | . . . . . Secondary Targets 2 | . 1 . . 1 Max Gunslinging Chain 1 | . 1 . . 1 Shots Hit Robots 43 | . 33 5 . 5 Core Hits 23 | . 20 1 . 2 Critical Kills . | . . . . . Critical Parts Destroyed . | . . . . . Critical Strikes . | . . . . . Melee Attacks . | . . . . . Impact . | . . . . . Slashing . | . . . . . Piercing . | . . . . . Sneak Attacks . | . . . . . Combat Hostiles . | . . . . . Follow-up Attacks . | . . . . . Damage Inflicted 443 | . 335 42 . 66 Guns 435 | . 329 40 . 66 Cannons . | . . . . . Explosions . | . . . . . Melee . | . . . . . Ramming 8 | . 6 2 . . Kinetic 199 | . 144 40 . 15 Thermal 51 | . . . . 51 Explosive . | . . . . . Electromagnetic 185 | . 185 . . . Impact . | . . . . . Slashing . | . . . . . Piercing . | . . . . . Highest Corruption . | . . . . . Average Corruption . | . . . . . Corruption Purged . | . . . . . Corruption Blocked . | . . . . . Overload Shots . | . . . . . Overflow Damage . | . . . . . Projectiles . | . . . . . Explosions . | . . . . . Melee . | . . . . . Knockbacks . | . . . . . Impact . | . . . . . Kinetic . | . . . . . Secondary . | . . . . . Self-Inflicted Damage . | . . . . . Shots . | . . . . . Rammed 1 | . . 1 . . Targets Rammed 2 | . 1 1 . . Kicked 1 | . 1 . . . Crushed . | . . . . . Highest Temperature 109 | . 109 . . 40 Average Temperature 37 | . 42 . . 21 Received Heat Transfer 275 | . 135 . . 140 Siege Activations . | . . . . . Robots Corrupted . | . . . . . Combat Hostiles . | . . . . . Parts Fried . | . . . . . Impact Corruptions . | . . . . . Robots Melted . | . . . . . Combat Hostiles . | . . . . . Parts Melted . | . . . . . Heat Transferred 111 | . . . . 111 Parts Sabotaged . | . . . . . Parts Stolen . | . . . . . Parts Stripped . | . . . . . Power Chain Reactions . | . . . . . Alert | -11 -10 -10 -10 -9 ------- Run | Yrd Mat Min Exi Min Peak Influence 190 | . 166 190 . 15 Initial 50 | . . 50 . . Average 100 | . 97 113 . 7 Maximum Alert Level . | . . . . . Low Security (%) 100 | 100 100 100 . 100 Level 1 . | . . . . . Level 2 . | . . . . . Level 3 . | . . . . . Level 4 . | . . . . . Level 5 . | . . . . . High Security . | . . . . . Max Security . | . . . . . Squads Dispatched 1 | . 1 . . . Investigation 1 | . 1 . . . Extermination . | . . . . . Reinforcement . | . . . . . Assault . | . . . . . Garrison . | . . . . . Intercept . | . . . . . Searches Triggered . | . . . . . Construction Impeded . | . . . . . Haulers Reinforced . | . . . . . Active Scanning Responses . | . . . . . Cargo Convoy Interrupts . | . . . . . Stealth | -11 -10 -10 -10 -9 --------- Run | Yrd Mat Min Exi Min Distress Signals 2 | . 2 . . . Communications Jammed . | . . . . . Distress Signals . | . . . . . Times Spotted 30 | . 17 4 . 9 Peak Tracking Total 12 | . 5 5 . 12 Tactical Retreats . | . . . . . Traps | -11 -10 -10 -10 -9 ------- Run | Yrd Mat Min Exi Min Traps Triggered 1 | . 1 . . . Indirectly . | . . . . . Trap Hack Attempts . | . . . . . Triggered . | . . . . . Disarmed . | . . . . . Reprogrammed . | . . . . . Reused . | . . . . . Traps Extracted . | . . . . . Installed . | . . . . . Triggered . | . . . . . Machines | -11 -10 -10 -10 -9 ---------- Run | Yrd Mat Min Exi Min Machines Disabled . | . . . . . Max in Single Turn . | . . . . . Machines Repaired . | . . . . . Machines Dismantled . | . . . . . Machines Sabotaged . | . . . . . Overloaded Fab Kills . | . . . . . Hacking | -11 -10 -10 -10 -9 --------- Run | Yrd Mat Min Exi Min Machines Accessed 10 | . 6 . 4 . Terminals 6 | . 6 . . . Fabricators . | . . . . . Repair Stations . | . . . . . Recycling Units . | . . . . . Scanalyzers . | . . . . . Garrison Access . | . . . . . Total Hacks 66 | . 17 . 49 . Successful 54 | . 5 . 49 . Failed 12 | . 12 . . . Catastrophic 3 | . 3 . . . Database Lockouts . | . . . . . Manual 10 | . 9 . 1 . Terminals 17 | . 17 . . . Fabricators . | . . . . . Repair Stations . | . . . . . Recycling Units . | . . . . . Scanalyzers . | . . . . . Garrison Access . | . . . . . Terminal Hacks 52 | . 3 . 49 . Record 49 | . . . 49 . Prototype ID Bank 1 | . 1 . . . Terminal Index 1 | . 1 . . . Hauler Manifests 1 | . 1 . . . Fabricator Hacks . | . . . . . Repair Station Hacks . | . . . . . Recycling Unit Hacks . | . . . . . Scanalyzer . | . . . . . Garrison Access Hacks . | . . . . . Unauthorized Hacks 2 | . 2 . . . Terminals 2 | . 2 . . . Botnet 1 | . 1 . . . Operators 1 | . 1 . . . Fabricators . | . . . . . Repair Stations . | . . . . . Recycling Units . | . . . . . Scanalyzers . | . . . . . Garrison Access . | . . . . . Data Cores Recovered . | . . . . . Used . | . . . . . Hacking Detections 4 | . 4 . . . Full Trace Events 1 | . 1 . . . Feedback Events . | . . . . . Feedback Blocked . | . . . . . Robot Schematics Acquired . | . . . . . Robots Built . | . . . . . Authchips . | . . . . . Time . | . . . . . Total Robot Build Rating . | . . . . . Part Schematics Acquired . | . . . . . Parts Built . | . . . . . Authchips . | . . . . . Time . | . . . . . Total Part Build Rating . | . . . . . Parts Repaired . | . . . . . Time . | . . . . . Parts Recycled . | . . . . . Recycled Matter . | . . . . . Retrieved Matter . | . . . . . Retrieved Components . | . . . . . Parts Scanalyzed . | . . . . . Part Schematics Acquired . | . . . . . Parts Damaged . | . . . . . Bothacking | -11 -10 -10 -10 -9 ------------ Run | Yrd Mat Min Exi Min Used RIF Installer . | . . . . . Robots Hacked . | . . . . . Non-combat . | . . . . . Combat . | . . . . . Robot Hacks Applied . | . . . . . Relay Couplers Released . | . . . . . Fabnet Peak Effective % . | . . . . . Robots Rewired . | . . . . . Allies Hacked . | . . . . . Hacks Repelled . | . . . . . Allies | -11 -10 -10 -10 -9 -------- Run | Yrd Mat Min Exi Min Total Allies 3 | . . 3 . . Largest Group 3 | . . 3 2 2 Highest-Rated Group 40 | . . 40 32 32 Highest-Rated Ally 16 | . . 16 16 16 Total Orders . | . . . . . Ally Attacks 12 | . . 11 . 1 Total Damage 113 | . . 113 . . Kills 6 | . . 6 . . Allies Corrupted . | . . . . . Allies Melted . | . . . . . Intel | -11 -10 -10 -10 -9 ------- Run | Yrd Mat Min Exi Min Robot Analysis Total . | . . . . . Derelict Logs Recovered . | . . . . . Drone Launches . | . . . . . Drone Recoveries . | . . . . . Exploration | -11 -10 -10 -10 -9 ------------- Run | Yrd Mat Min Exi Min Turns Passed 2251 | 11 545 448 1218 29 Spaces Moved 1325 | 10 286 265 753 11 Core . | . . . . . Treads 1233 | . 204 265 753 11 Legs 92 | 10 82 . . . Wheels . | . . . . . Hover . | . . . . . Flight . | . . . . . Fastest Speed 120 | 120 120 160 160 160 Average Speed 158 | 120 152 160 160 160 Slowest Speed 240 | 120 240 160 160 160 Overloaded Moves . | . . . . . Propulsion Burnouts . | . . . . . Robots Hopped . | . . . . . Cave-ins Triggered . | . . . . . Exploration Rate (%) 39 | 3 49 46 93 5 Regions Visited 4 Branch Regions 3 Pre-discovered Areas 1 | . . . 1 . Known Exits Taken . | . . . . . Unknown Exits Taken 4 | 1 1 1 1 . Scrap Searched 1 | . . 1 . . Spaces Dug . | . . . . . Terrain Destroyed . | . . . . . Melee . | . . . . . Projectile . | . . . . . AOE . | . . . . . Terrain Rammed . | . . . . . Walls Destroyed . | . . . . . Machines Disabled . | . . . . . Actions | -11 -10 -10 -10 -9 --------- Run | Yrd Mat Min Exi Min Total 1421 | 9 345 283 769 15 Wait 28 | . 20 8 . . Move 1321 | 9 285 264 752 11 Hop . | . . . . . Pick Up 9 | . 2 2 5 . Fast Attach 4 | . 3 . 1 . Attach . | . . . . . Detach 3 | . 2 . 1 . Swap 8 | . 5 3 . . Drop 7 | . . 2 5 . Fire 34 | . 27 3 . 4 Melee . | . . . . . Ram . | . . . . . Kick 1 | . 1 . . . Crush 1 | . . 1 . . Escape Stasis . | . . . . . Rewire 5 | . . . 5 . Trap . | . . . . . Miscellaneous . | . . . . . Route ------- -11/Scrapyard -10/Materials (discovered 3 exits: [*Mat] / [*Min x2]) -10/Mines (discovered 2 exits: [*Mat] / *Exi) -10/Exiles (discovered 2 exits: [*Min x2]) -9/Mines History --------- Turn | Location | Event 1 | -11/Scrapyard | Discovered new exit (range 3) 12 | -11/Scrapyard | Entered Materials 12 | -10/Materials | Discovered new exit (range 15) 162 | -10/Materials | Discovered new exit (range 6) 301 | -10/Materials | Build established: Mutant 482 | -10/Materials | Discovered new exit (range 7) 557 | -10/Materials | Entered Mines 603 | -10/Mines | Discovered new exit (range 7) 616 | -10/Mines | Assisted by bots powering up and referring to "LRC-V3" 994 | -10/Mines | Deemed a non-threat by the Exiles lab entrance 998 | -10/Mines | Discovered new exit (range 5) 1005 | -10/Mines | Entered Exiles 1005 | -10/Exiles | Found Exiles lab destroyed 1005 | -10/Exiles | Accompanied by 2 allies 1075 | -10/Exiles | Build established: Scavenger-Mutant 1366 | -10/Exiles | Learned location of Zion (-6) 1655 | -10/Exiles | Build established: Mutant 1822 | -10/Exiles | Discovered new exit (range 15) 1994 | -10/Exiles | Discovered new exit (range 10) 2223 | -10/Exiles | Entered Mines 2223 | -9/Mines | Accompanied by 2 allies 2224 | -9/Mines | Assembled infested the area 2229 | -9/Mines | Assisted by a Guerilla fighting off Assembled 2252 | -9/Mines | Self-destructed Last Messages --------------- group of Assembled to figure out where they're coming from, and they're closing on this area, come on!" 02229_ UY-HBC(h): "I'll hold them off! Go on ahead or try to find another way!" 02229_ HV Slug penetrates Wall. 02231_ Trooper 1a destroyed. 02232_ K-01 Serf collects debris. 02233_ UY-HBC(h) destroyed. 02235_ K-01 Serf destroyed. 02235_ K-01 Serf collects debris. 02242_ K-01 Serf cleans the Core Extractor. 02246_ K-01 Serf collects debris. 02247_ Destroyed Asb. Hover Unit. 02248_ K-01 Serf collects debris. 02249_ as-05948 destroyed. 02249_ Switching to secondary target: as-02877. 02251_ Core Extractor disabled. 02252_ Lgt. Assault Rifle destroyed. 02252_ Critical hit (Burn: +80). Map ----- +----------------------------------------------------+ | ??????????????????????????????????? | | ??????????????????????????????????? | | ??????????????????????????????????? | | ??????????????????????????????????? | | ??????????????????????????????????? | | ??????????????????????????????????? | | ??????????????????????????????????? | | ??????????????????????????????????? | | ??????????????????????????????????? | | ??????????????????????????????????? | | ??????????????????????????????????? | | ??????????????????????????????????? | | ??????????????????????????????????? | | ??????????????????????????????????? | | ??????????????????????????????????? | | ??????????????????????????????????? | | ??????????????????????????????????? | | ?????????????????????###??????????? | | ?????????????????????? ??????????? | | ??????????????????????# #########?? | | ??????????????????#####=#! #?? | | ??????????????????# *%*%!= #?? | | ??????????????????# !%=!%aaa #?? | | ??????????????????# ####aa #?? | | ????????????????????????#%aaa =%#?? | | ????????????????????????#@ ""k =#?? | | ????????????????????????# """ #?? | | ????????????????????????# """ #?? | | ????????????????????????# #?? | | ????????????????????????# #?? | | ????????????????????????# #?? | | ????????????????????????#########?? | | ??????????????????????????????????? | | ??????????????????????????????????? | | ??????????????????????????????????? | | ??????????????????????????????????? | | ??????????????????????????????????? | | ??????????????????????????????????? | | ??????????????????????????????????? | | ??????????????????????????????????? | | ??????????????????????????????????? | | ??????????????????????????????????? | | ??????????????????????????????????? | | ??????????????????????????????????? | | ??????????????????????????????????? | | ??????????????????????????????????? | | ??????????????????????????????????? | | ??????????????????????????????????? | | ??????????????????????????????????? | | ??????????????????????????????????? | +----------------------------------------------------+ Best States ------------- Heat Dissipation 35 Energy Generation 10 Energy Capacity 250 Matter Stores 300 Matter Capacity 300 Sight Range 16 Terrain Scan Density 10 Evasion (%) 55 Recoil Reduction 2 Item Schematics ----------------- None Robot Schematics ------------------ None Fabricated ------------ Nothing Alien Tech Used ----------------- None Achievements -------------- None Challenges ------------ None Game ------ Seed DimensionalEnergyPlating Manual? 0 Play Time 00:16:13 Cumulative 39.0 hours Start 2024.04.02 @ 22:14:52 End 2024.04.02 @ 22:31:46 Sessions 1 Manual Loads 0 Difficulty Rogue Special Mode None Game No. 103 Rogue 102 Adventurer 0 Explorer 1 Win Type - Total 0 Types 0/0/0/0/0/0/0/0/0 Lore% 20 Gallery% 37 Achievement% 28 Wizard Run 0 Options --------- Layout 1 ASCII 0 Keyboard 1 Movement Vi Keybinds 0 Fullscreen 2 Font 32/Tamsyn Map View 50x35 Zoom Use 0% Tactical HUD 1 Map Filters NONE Filters NONE Steam 1 RUN: 5d343c9e-8f8b-4ad9-b91c-47a078aa054a